bitfinex/quotes_ETHUSD_20240718
["timestamp","ask_amount","ask_price","bid_price","bid_amount"]
[1721344749633,1.038,3439.5,3439.2,5.23109]
[1721344750003,1.038,3439.7,3439.3,5.2382]
[1721344750734,0.04523108,3439.6,3439.3,5.2382]
[1721344751311,1.038,3439.7,3439.4,2.90748]
[1721344751634,0.04523321,3439.6,3439.4,2.90748]
[1721344753734,0.04523321,3439.6,3439.5,2.90739]
[1721344754109,1.038,3439.9,3439.6,2.90731]
[1721344754443,5.90682,3440.2,3439.7,8.20676]
[1721344754444,0.04559401,3439.8,3439.7,8.20676]
[1721344754605,1.038,3440.3,3440.0,2.90695]
[1721344754805,3.0,3440.6,3440.0,2.90695]
[1721344755032,3.0,3440.6,3440.1,2.90687]
[1721344755203,1.038,3440.3,3440.1,2.90687]
[1721344756337,1.038,3440.3,3439.9,2.907]
[1721344756637,1.038,3440.0,3439.9,2.907]
[1721344757813,1.0786112,3440.0,3439.9,2.907]
[1721344760121,0.0406112,3440.0,3439.9,2.907]
[1721344760321,0.0406112,3440.0,3439.9,5.3562]
[1721344761052,1.038,3440.2,3439.8,2.90713]
[1721344761352,1.038,3440.0,3439.8,2.90713]
[1721344761715,0.04057019,3439.9,3439.8,2.90713]
[1721344763943,0.04056683,3439.9,3439.8,2.90713]
[1721344764347,1.038,3439.9,3439.4,2.90741]
[1721344764649,1.038,3439.9,3439.5,2.90739]
[1721344765018,0.04079225,3439.8,3439.5,2.90739]
[1721344765222,0.04079225,3439.8,3439.3,5.2165]
[1721344765451,1.038,3439.6,3439.3,5.2165]
[1721344765747,0.04055907,3439.5,3439.3,5.2165]
[1721344765956,0.04055907,3439.5,3439.4,2.90748]
[1721344766422,0.04055907,3439.5,3439.3,2.309]
[1721344767245,0.04055907,3439.5,3439.3,5.21651]
[1721344768919,0.04055907,3439.5,3439.4,2.90748]
[1721344769149,1.038,3439.8,3439.4,2.90748]
[1721344769654,0.04064112,3439.7,3439.4,2.90748]
[1721344770017,1.038,3439.8,3439.4,2.90748]
[1721344770215,0.04060009,3439.6,3439.4,2.90748]
[1721344770418,1.038,3439.8,3439.4,2.90748]
[1721344770652,0.04055907,3439.5,3439.4,2.90748]
[1721344770821,1.038,3439.8,3439.4,2.90748]
[1721344771022,0.04055907,3439.5,3439.4,2.90748]
[1721344771523,1.038,3439.8,3439.4,2.90748]
[1721344771751,0.04064112,3439.7,3439.4,2.90748]
[1721344771956,1.038,3439.8,3439.4,2.90748]
[1721344772254,0.04064112,3439.7,3439.3,2.309]
[1721344772570,0.04060009,3439.6,3439.3,5.21656]
[1721344772854,1.038,3439.8,3439.3,5.21656]
[1721344773153,0.04055907,3439.5,3439.3,5.21656]
[1721344773455,0.04051804,3439.4,3439.3,5.21656]
[1721344773653,1.038,3439.8,3439.3,5.21656]
[1721344773821,0.04051804,3439.4,3439.3,5.21656]
[1721344774026,1.038,3439.8,3439.3,5.21656]
[1721344774242,0.0406502,3439.4,3439.3,5.21656]
[1721344774450,1.038,3439.8,3439.3,5.21656]
[1721344774648,0.0406502,3439.4,3439.3,5.21656]
[1721344774855,1.038,3439.8,3439.3,5.21656]
[1721344775030,0.0406502,3439.4,3439.3,5.21656]
[1721344775349,1.038,3439.8,3439.3,5.21656]
[1721344775526,0.0406502,3439.4,3439.3,5.21656]
[1721344775729,1.038,3439.8,3439.4,0.030898]
[1721344776535,0.04077326,3439.7,3439.4,0.030898]
[1721344777050,0.04073224,3439.6,3439.4,0.030898]
[1721344777455,3.94516,3439.8,3439.4,0.030898]
[1721344777652,0.04069122,3439.5,3439.4,0.030898]
[1721344777858,3.94516,3439.8,3439.4,0.030898]
[1721344778039,0.04069122,3439.5,3439.4,0.030898]
[1721344778229,3.94516,3439.8,3439.4,0.030898]
[1721344778429,0.04069122,3439.5,3439.4,0.030898]
[1721344778744,3.94516,3439.8,3439.4,0.030898]
[1721344778943,0.04069122,3439.5,3439.4,0.030898]
[1721344779455,3.94516,3439.8,3439.4,0.030898]
[1721344779760,0.04069122,3439.5,3439.4,0.030898]
[1721344779923,0.04066869,3439.5,3439.4,0.030898]
[1721344780326,3.94497,3440.0,3439.4,2.938378]
[1721344781071,0.04072264,3439.9,3439.4,2.938318]
[1721344782031,0.04072264,3439.9,3439.4,5.845728]
[1721344782360,0.04072264,3439.9,3439.5,2.4867]
[1721344782534,0.04072264,3439.9,3439.6,2.90731]
[1721344782745,2.90699,3440.0,3439.5,2.4867]
[1721344783047,0.04062975,3439.9,3439.5,2.4867]
[1721344784537,0.04062975,3439.9,3439.5,5.39402]
[1721344784940,1.038,3440.1,3439.5,5.39402]
[1721344785134,0.04080897,3439.8,3439.5,5.39402]
[1721344785534,1.038,3439.9,3439.5,5.39402]
[1721344786086,0.04076492,3439.8,3439.5,5.39402]
[1721344789254,0.04076492,3439.8,3439.5,8.30137]
[1721344789634,1.038,3440.1,3439.5,8.30137]
[1721344789835,0.04063581,3439.7,3439.5,5.39402]
[1721344790036,1.038,3440.1,3439.5,5.39402]
[1721344790234,0.04059479,3439.6,3439.5,5.39402]
[1721344790435,3.94489,3440.1,3439.6,2.90731]
[1721344790662,4.630055,3440.1,3439.6,2.90731]
[1721344791970,0.04075886,3440.0,3439.6,2.90731]
[1721344794335,1.038,3439.9,3439.6,2.90731]
[1721344794650,0.04067683,3439.8,3439.6,2.90731]
[1721344796882,0.04067683,3439.8,3439.6,2.90725]
[1721344798674,1.038,3439.9,3439.6,2.90725]
[1721344798973,0.04064438,3439.7,3439.6,2.90725]
[1721344799273,0.04064548,3439.7,3439.6,2.90725]
[1721344799443,1.038,3439.9,3439.6,2.90725]
[1721344799640,0.04064548,3439.7,3439.6,2.90725]
[1721344799993,1.038,3439.9,3439.6,2.90725]
[1721344800202,0.04064548,3439.7,3439.6,2.90725]
[1721344800663,1.038,3439.9,3439.6,2.90725]
[1721344800980,0.04064548,3439.7,3439.6,2.90725]
[1721344801184,1.038,3439.9,3439.6,6.82550137]
[1721344801475,3.4831,3439.8,3439.4,0.6393432]
[1721344801652,1.038,3439.6,3439.4,0.030898]
[1721344803275,0.04059025,3439.5,3439.4,0.030898]
[1721344807150,0.04059025,3439.5,3439.4,2.285998]
[1721344807347,1.038,3439.8,3439.4,2.285998]
[1721344807547,0.04059025,3439.5,3439.4,2.285998]
[1721344807774,1.038,3439.8,3439.4,5.193428]
[1721344808287,0.04067229,3439.7,3439.4,5.193428]
[1721344808601,1.038,3439.8,3439.4,5.193428]
[1721344808757,0.04063127,3439.6,3439.5,2.90739]
[1721344808956,1.038,3439.9,3439.5,2.90739]
[1721344809406,0.04069185,3439.8,3439.5,2.90739]
[1721344811670,0.04069185,3439.8,3439.6,2.9073]
[1721344815080,0.04069185,3439.8,3439.6,5.81455]
[1721344815399,0.04069185,3439.8,3439.4,5.193448]
[1721344816063,0.04069185,3439.8,3439.5,1.0110745]
[1721344816267,0.04069185,3439.8,3439.4,5.193448]
[1721344816485,0.04069185,3439.8,3439.7,5.20733]
[1721344816673,1.038,3440.1,3439.8,2.90712]
[1721344817179,0.04013843,3440.0,3439.8,2.90712]
[1721344818170,1.038,3439.9,3439.6,5.81451]
[1721344818472,5.90677,3440.3,3439.4,0.030898]
[1721344818473,1.038,3439.7,3439.4,0.030898]
[1721344818678,1.038,3439.5,3439.4,0.030898]
[1721344819083,1.07656959,3439.5,3439.4,0.030898]
[1721344820392,0.03856959,3439.5,3439.4,0.030898]
[1721344820717,0.590677,3440.2,3439.4,2.518498]
[1721344820718,1.038,3439.7,3439.4,2.518498]
[1721344820874,1.038,3439.7,3439.5,2.90738]
[1721344821279,1.038,3439.7,3439.4,2.518498]
[1721344821981,1.038,3439.7,3439.4,0.030898]
[1721344822768,0.03849192,3439.6,3439.4,0.030898]
[1721344827411,1.038,3439.7,3439.4,0.030898]
[1721344827989,0.0384774,3439.6,3439.4,0.030898]
[1721344829317,1.038,3439.5,3439.4,0.030898]
[1721344829799,1.0764584,3439.5,3439.4,0.030898]
[1721344831114,6.8912384,3439.5,3439.4,0.030898]
[1721344831716,6.92752656,3439.5,3439.4,0.030898]
[1721344833784,12.18972656,3439.5,3439.4,0.030898]
[1721344833985,13.47760599,3439.5,3439.4,0.030898]
[1721344834386,16.38499599,3439.5,3439.4,0.030898]
[1721344834887,15.34699599,3439.5,3439.4,0.030898]
[1721344835103,16.38499599,3439.5,3439.4,0.030898]
[1721344844513,19.29238599,3439.5,3439.4,0.030898]
[1721344844729,19.84238599,3439.5,3439.4,0.030898]
[1721344845704,5.81632,3438.6,3438.5,7.44]
[1721344845915,2.90879,3437.9,3437.4,2.3576]
[1721344846102,1.038,3437.7,3437.4,2.3576]
[1721344846511,0.07413738,3437.6,3437.4,2.3576]
[1721344848026,1.038,3437.9,3437.4,2.3576]
[1721344848523,0.07412773,3437.8,3437.5,2.4063]
[1721344848932,1.038,3437.7,3437.5,2.4063]
[1721344849226,2.909,3437.6,3437.5,2.4063]
[1721344849398,2.98294033,3437.6,3437.5,2.4063]
[1721344850927,2.90912,3437.5,3436.9,2.4063]
[1721344851239,1.038,3437.3,3436.9,2.90959]
[1721344851442,1.038,3437.3,3437.0,2.4063]
[1721344851753,0.07398314,3437.2,3437.0,2.4063]
[1721344852201,3.94719,3437.4,3437.0,2.4063]
[1721344852551,1.038,3437.4,3437.0,2.4063]
[1721344852699,0.07397158,3437.3,3437.0,2.4063]
[1721344853322,0.07397158,3437.3,3437.0,5.3158]
[1721344853547,0.07397158,3437.3,3437.1,2.3191]
[1721344853854,1.038,3437.4,3437.1,2.3191]
[1721344854139,0.07397158,3437.3,3437.1,5.22851]
[1721344854311,0.07397158,3437.3,3435.3,1.56916939]
[1721344854312,0.07397158,3437.3,3437.2,5.81868]
[1721344854510,0.07397158,3437.3,3437.2,8.25088]
[1721344854719,1.038,3438.0,3437.4,2.90909]
[1721344855053,1.038,3438.0,3437.5,2.4322]
[1721344855227,0.07417069,3437.9,3437.5,5.34128]
[1721344855942,0.07417069,3437.9,3437.6,2.90899]
[1721344856247,0.07417069,3437.9,3437.7,2.3994]
[1721344857151,0.07417069,3437.9,3437.7,5.3083]
[1721344857442,1.038,3437.8,3437.7,2.3994]
[1721344857604,0.07417069,3437.9,3437.7,5.30831]
[1721344857806,0.0741307,3437.8,3437.7,5.30831]
[1721344858107,1.038,3438.0,3437.7,5.30831]
[1721344858326,0.0741769,3437.8,3437.7,2.3994]
[1721344858535,1.038,3438.0,3437.7,2.3994]
[1721344858749,0.0741769,3437.8,3437.7,5.30831]
[1721344859347,1.038,3438.0,3437.7,5.30831]
[1721344859511,0.0741769,3437.8,3437.7,5.30831]
[1721344859712,1.038,3438.0,3437.7,2.3994]
[1721344860228,1.038,3438.0,3437.7,5.30832]
[1721344860442,1.038,3438.0,3437.7,2.3994]
[1721344860443,0.07421689,3437.9,3437.7,2.3994]
[1721344860611,1.038,3437.8,3437.7,2.3994]
[1721344860905,1.11217797,3437.8,3437.7,2.3994]
[1721344862709,0.07417797,3437.8,3437.7,2.3994]
[1721344862912,1.038,3438.0,3437.7,2.3994]
[1721344863436,2.90854,3438.2,3437.7,2.3994]
[1721344863437,1.038,3437.8,3437.7,2.3994]
[1721344863643,0.07419837,3437.8,3437.7,2.3994]
[1721344863846,1.038,3438.0,3437.7,2.3994]
[1721344864228,1.038,3437.8,3437.7,2.3994]
[1721344864631,1.11220481,3437.8,3437.7,2.3994]
[1721344865660,0.07420481,3437.8,3437.7,2.3994]
[1721344866329,1.038,3437.8,3437.7,2.3994]
[1721344866529,1.11220481,3437.8,3437.7,2.3994]
[1721344866730,0.07420481,3437.8,3437.7,2.3994]
[1721344867044,1.038,3438.0,3437.7,2.3994]
[1721344867556,0.07424479,3437.9,3437.7,2.3994]
[1721344867714,0.07424479,3437.9,3437.8,2.90883]
[1721344868684,0.07424479,3437.9,3437.7,2.3994]
[1721344869073,0.07424479,3437.9,3437.7,5.30831]
[1721344869482,1.038,3437.8,3437.7,2.3994]
[1721344870058,1.44008448,3437.8,3437.7,2.3994]
[1721344870259,1.51430325,3437.8,3437.4,2.4331]
[1721344870464,1.038,3437.5,3437.4,2.4331]
[1721344870662,0.07409881,3437.5,3437.4,2.4331]
[1721344870873,1.038,3437.7,3437.4,2.4331]
[1721344871175,0.0741184,3437.6,3437.4,2.4331]
[1721344873144,0.0741184,3437.6,3437.5,2.90909]
[1721344873364,0.0741184,3437.6,3436.8,1.038]
[1721344873365,1.038,3438.1,3437.8,2.90877]
[1721344873765,0.07425579,3438.0,3437.8,2.90877]
[1721344875098,0.07425579,3438.0,3437.6,5.29363]
[1721344875297,1.038,3437.9,3437.6,5.29363]
[1721344875498,1.038,3437.7,3437.6,5.29363]
[1721344875996,1.11215945,3437.7,3437.6,5.29363]
[1721344876199,1.11215945,3437.7,3436.8,1.038]
[1721344876200,1.11215945,3437.7,3437.3,2.4073]
[1721344876391,1.038,3437.5,3437.3,2.4073]
[1721344876571,0.07415945,3437.7,3437.3,2.4073]
[1721344876572,1.11215945,3437.7,3437.3,2.4073]
[1721344876772,0.07404808,3437.4,3437.3,2.4073]
[1721344877002,1.038,3437.7,3437.3,2.4073]
[1721344877495,0.07411197,3437.6,3437.3,5.31654]
[1721344877873,3.9468,3437.9,3437.3,5.31654]
[1721344878196,0.07419194,3437.8,3437.4,2.90917]
[1721344881173,0.07419194,3437.8,3437.5,2.4553]
[1721344882499,2.90844,3438.3,3437.7,5.36422]
[1721344883379,2.90844,3438.3,3437.8,2.90882]
[1721344884474,0.07369465,3438.2,3437.8,2.90882]
[1721344884675,2.90844,3438.3,3437.8,2.90882]
[1721344884908,0.95537655,3438.2,3437.8,2.90882]
[1721344886495,0.07370755,3438.2,3437.9,2.90875]
[1721344886900,2.90825,3438.5,3438.0,2.3357]
[1721344887089,0.07387056,3438.1,3438.0,2.3357]
[1721344887291,5.81656,3438.5,3438.0,2.3357]
[1721344887492,3.69205449,3438.4,3438.0,2.3357]
[1721344891305,0.78370449,3438.4,3438.1,2.90857]
[1721344891505,0.07399046,3438.4,3438.1,2.90857]
[1721344891896,2.90823,3438.6,3438.1,2.90857]
[1721344892242,0.45595832,3438.7,3438.2,2.90849]
[1721344892243,3.36402832,3438.7,3438.2,2.90849]
[1721344892519,3.36402832,3438.7,3438.3,2.2522]
[1721344892691,0.58530283,3438.6,3438.3,2.2522]
[1721344895289,0.07367818,3438.5,3438.3,2.2522]
[1721344900228,1.037,3438.4,3438.3,2.2522]
[1721344900520,1.11051647,3438.4,3438.3,2.2522]
[1721344901742,1.11051647,3438.4,3438.3,5.16061]
[1721344903140,1.11051647,3438.4,3438.3,2.2522]
[1721344903729,1.62569423,3438.4,3438.3,2.2522]
[1721344904530,2.90842,3438.3,3437.8,2.2906]
[1721344904728,4.53408423,3438.4,3437.8,2.2906]
[1721344904729,1.037,3437.9,3437.8,2.2906]
[1721344905225,1.1103146,3437.9,3437.8,2.2906]
[1721344911030,1.1103146,3437.9,3437.6,2.4441]
[1721344913445,1.037,3437.7,3437.6,2.4441]
[1721344913745,0.0733146,3437.9,3437.6,2.4441]
[1721344915332,0.0733146,3437.9,3437.6,5.35309]
[1721344915535,0.0733146,3437.9,3437.7,2.90889]
[1721344924632,0.0733146,3437.9,3437.8,5.81766]
[1721344924833,1.037,3438.2,3438.0,2.90859]
[1721344925035,1.037,3438.2,3438.1,2.2854]
[1721344925268,1.037,3438.2,3437.8,5.19417]
[1721344925565,1.037,3438.0,3437.8,5.19417]
[1721344925778,1.037,3438.0,3437.9,2.90875]
[1721344927548,1.11025988,3438.0,3437.9,2.90875]
[1721344927749,0.07325988,3438.0,3437.9,2.90875]
[1721344928157,1.037,3438.2,3438.0,2.90865]
[1721344928945,1.037,3438.2,3437.9,2.4403]
[1721344929167,1.037,3438.0,3437.9,2.4403]
[1721344929468,1.037,3438.0,3437.9,5.34905]
[1721344930770,1.037,3438.2,3437.9,5.34905]
[1721344931070,0.07327384,3438.0,3437.9,5.34905]
[1721344931238,1.037,3438.2,3437.9,5.34905]
[1721344931439,0.0732674,3438.0,3437.9,5.34905]
[1721344931837,1.037,3438.2,3437.9,5.34905]
[1721344932032,0.0732674,3438.0,3437.9,5.34905]
[1721344932242,1.037,3438.2,3437.9,5.34905]
[1721344932777,0.07330738,3438.1,3437.9,5.34905]
[1721344941373,0.07330738,3438.1,3438.0,2.90866]
[1721344941576,0.07330738,3438.1,3438.0,5.33366]
[1721344942081,6.36408832,3438.7,3438.0,5.33366]
[1721344942082,0.45595832,3438.7,3438.5,2.9082]
[1721344942286,0.45595832,3438.7,3438.6,5.33316]
[1721344942453,1.037,3438.8,3438.6,5.33316]
[1721344944085,1.037,3438.9,3438.6,5.33316]
[1721344945687,2.9077,3439.2,3438.6,5.33316]
[1721344945688,1.037,3438.7,3438.6,2.425]
[1721344945991,1.10568753,3438.7,3438.6,2.425]
[1721344949865,1.10568753,3438.7,3438.4,2.90831]
[1721344950197,1.037,3438.5,3438.2,5.16662]
[1721344950566,0.06845906,3438.4,3438.2,5.16662]
[1721344951593,0.06845906,3438.4,3438.3,2.90836]
[1721344958011,0.06845906,3438.4,3438.2,2.2582]
[1721344958331,3.94542,3438.3,3437.9,2.3594]
[1721344958578,1.037,3438.0,3437.9,2.3594]
[1721344958865,1.10280137,3438.0,3437.9,2.3594]
[1721344959243,1.10280137,3438.0,3437.7,2.4863]
[1721344961026,1.037,3437.8,3437.5,2.3077]
[1721344961872,0.06572481,3437.7,3437.5,2.3077]
[1721344962049,1.037,3437.8,3437.5,2.3077]
[1721344962250,0.06568482,3437.6,3437.5,2.3077]
[1721344962455,1.037,3437.8,3437.5,2.3077]
[1721344963571,1.431571,3437.8,3437.5,2.3077]
[1721344964428,1.037,3437.6,3437.5,2.3077]
[1721344964630,1.431571,3437.8,3437.5,2.3077]
[1721344964875,1.431571,3437.8,3437.3,2.90925]
[1721344965041,1.037,3437.6,3437.3,5.19845]
[1721344965564,0.06536244,3437.5,3437.3,5.19845]
[1721344966145,3.94584,3437.8,3437.3,5.19845]
[1721344966344,1.037,3437.5,3437.3,5.19845]
[1721344966560,1.037,3437.7,3437.3,5.19845]
[1721344966975,0.06537668,3437.6,3437.3,5.19845]
[1721344967973,0.06537668,3437.6,3437.4,2.90914]
[1721344969274,0.06533882,3437.5,3437.4,2.90914]
[1721344969441,1.037,3437.7,3437.4,2.90914]
[1721344969644,0.06533776,3437.5,3437.4,2.90914]
[1721344969850,3.94577,3437.9,3437.4,2.90914]
[1721344970052,0.06533776,3437.5,3437.4,2.90914]
[1721344970344,1.037,3437.9,3437.4,2.90914]
[1721344970560,0.06533991,3437.5,3437.4,2.90914]
[1721344970761,2.90867,3438.0,3437.4,2.90914]
[1721344971082,3.94567,3438.0,3437.4,2.90914]
[1721344971251,1.037,3437.8,3437.4,2.90914]
[1721344971882,0.0654231,3437.7,3437.4,2.90914]
[1721344972081,4.93128209,3438.0,3437.3,2.2892]
[1721344972244,0.06537667,3437.6,3437.3,5.19845]
[1721344972580,1.037,3437.6,3437.3,5.19845]
[1721344972754,0.06533668,3437.5,3437.3,5.19845]
[1721344973152,1.037,3437.8,3437.3,5.19845]
[1721344973340,0.06529668,3437.4,3437.3,5.19845]
[1721344973536,1.037,3437.8,3437.3,5.19845]
[1721344973771,0.06529668,3437.4,3437.3,5.19845]
[1721344974284,1.037,3437.8,3437.4,2.90917]
[1721344976338,0.06537903,3437.7,3437.4,2.90917]
[1721344976769,1.037,3437.8,3437.4,2.90917]
[1721344976943,0.06533904,3437.6,3437.4,2.90917]
[1721344977132,1.037,3437.8,3437.4,2.90917]
[1721344977357,1.037,3437.6,3437.4,2.90917]
[1721344977768,0.06529905,3437.5,3437.4,2.90917]
[1721344977992,3.9458,3437.9,3437.4,2.90917]
[1721344978293,1.037,3437.7,3437.4,2.90917]
[1721344978672,0.06533904,3437.6,3437.4,2.90917]
[1721344978867,3.9458,3437.9,3437.4,2.90917]
[1721344979070,0.06529905,3437.5,3437.4,2.90917]
[1721344979283,3.9458,3437.9,3437.4,2.90917]
[1721344979484,0.06529905,3437.5,3437.4,2.90917]
[1721344979685,2.9088,3437.9,3437.4,2.90917]
[1721344979885,0.06529905,3437.5,3437.4,2.90917]
[1721344980089,2.9088,3437.9,3437.4,2.90917]
[1721344980272,1.037,3437.8,3437.4,2.90917]
[1721344980474,1.10241902,3437.8,3437.4,2.90917]
[1721344981366,1.037,3437.6,3437.4,2.90917]
[1721344981886,0.06529905,3437.5,3437.4,2.90917]
[1721344982097,1.037,3437.9,3437.5,2.2886]
[1721344982394,5.326,3438.6,3437.8,2.2886]
[1721344982395,2.90834,3438.4,3437.8,2.2886]
[1721344982561,1.037,3438.2,3437.8,5.19736]
[1721344982966,1.037,3438.2,3437.8,2.2886]
[1721344983167,2.022376,3438.2,3437.8,2.2886]
[1721344983507,1.037,3437.9,3437.8,2.2886]
[1721344983800,0.06552177,3438.1,3437.8,2.2886]
[1721344983801,1.10252177,3438.1,3437.8,2.2886]
[1721344984997,0.06552177,3438.1,3437.8,5.19736]
[1721344986388,1.037,3438.0,3437.8,5.19736]
[1721344986889,0.06552177,3438.1,3437.8,5.19736]
[1721344987194,1.037,3438.2,3437.8,5.19736]
[1721344987399,0.06556307,3438.1,3437.8,5.19736]
[1721344988518,1.037,3438.0,3437.8,5.19736]
[1721344988702,0.06556307,3438.1,3437.8,5.19736]
[1721344988905,0.06545493,3437.9,3437.8,5.19736]
[1721344989089,1.037,3438.2,3437.8,5.19736]
[1721344989292,0.06545493,3437.9,3437.8,5.19736]
[1721344989483,1.037,3438.0,3437.8,5.19736]
[1721344989671,0.06545493,3437.9,3437.8,5.19736]
[1721344994404,0.06545493,3437.9,3437.1,8.0484452]
[1721344994405,0.06545493,3437.9,3437.5,5.34837]
[1721344994702,1.037,3437.7,3437.5,5.34837]
[1721344995103,0.06526483,3437.6,3437.5,5.34837]
[1721344996895,1.037,3437.9,3437.5,5.34837]
[1721344997096,0.06519387,3437.6,3437.5,5.34837]
[1721344997295,1.037,3437.9,3437.5,5.34837]
[1721344997491,0.06519387,3437.6,3437.5,5.34837]
[1721344997698,1.037,3437.9,3437.5,5.34837]
[1721344998307,0.06527384,3437.8,3437.5,5.34837]
[1721344998514,1.037,3437.7,3437.6,2.909]
[1721344998677,1.037,3437.9,3437.7,2.90892]
[1721345001620,0.06527494,3437.8,3437.7,2.90892]
[1721345001792,0.06527494,3437.8,3437.7,8.07294]
[1721345001988,1.037,3438.1,3437.8,2.90876]
[1721345002190,0.06535383,3438.0,3437.9,2.90875]
[1721345002608,0.06535383,3438.0,3437.7,8.07286]
[1721345003005,0.06535383,3438.0,3437.8,2.90881]
[1721345004404,1.037,3437.9,3437.8,2.90881]
[1721345004600,1.10231599,3437.9,3437.8,2.90881]
[1721345005729,0.06531599,3437.9,3437.8,2.90881]
[1721345006427,1.037,3437.9,3437.8,2.90881]
[1721345006639,0.06531599,3437.9,3437.8,2.90881]
[1721345006924,1.037,3438.1,3437.8,2.90881]
[1721345007118,0.06531599,3437.9,3437.8,2.90881]
[1721345007296,1.037,3438.1,3437.8,2.90881]
[1721345007496,1.10231599,3437.9,3437.8,2.90881]
[1721345007804,5.90834,3438.4,3437.9,2.90874]
[1721345008030,1.037,3438.1,3437.9,2.90874]
[1721345009734,0.06516412,3438.0,3437.9,2.90874]
[1721345010804,0.06516412,3438.0,3437.9,6.33132759]
[1721345011113,1.037,3438.3,3438.0,2.90864]
[1721345011524,1.037,3438.1,3438.0,2.90864]
[1721345011711,1.037,3438.3,3438.0,2.90864]
[1721345012409,3.45593914,3438.5,3438.0,2.90864]
[1721345012410,1.037,3438.1,3438.0,2.90864]
[1721345012732,1.037,3438.3,3438.0,2.90864]
[1721345013430,1.037,3438.1,3438.0,2.90864]
[1721345013632,0.06525809,3438.2,3438.0,2.90864]
[1721345013834,0.06522328,3438.1,3438.0,2.90864]
[1721345014038,1.037,3438.3,3438.0,2.90864]
[1721345014338,0.06522328,3438.1,3438.0,2.90864]
[1721345014502,1.037,3438.1,3438.0,2.90864]
[1721345014849,1.10222328,3438.1,3438.0,2.90864]
[1721345018147,1.10222328,3438.1,3437.8,2.90883]
[1721345018342,1.037,3437.9,3437.8,2.90883]
[1721345018653,1.10207448,3437.9,3437.8,3.9204222]
[1721345020864,1.10207448,3437.9,3437.8,3.92042269]
[1721345021361,4.01086448,3437.9,3437.4,0.6084452]
[1721345021542,0.45999874,3437.8,3437.5,1.01169548]
[1721345021741,0.45999874,3437.8,3437.3,2.90921]
[1721345021948,0.45999874,3437.8,3437.4,2.52930626]
[1721345021949,1.037,3437.5,3437.4,2.52930626]
[1721345022154,1.037,3437.5,3437.4,1.0117225]
[1721345022335,1.10180508,3437.5,3437.4,1.0117225]
[1721345022538,1.10180508,3437.5,3437.4,2.52924785]
[1721345023130,1.037,3437.5,3437.4,2.52924785]
[1721345024057,1.037,3437.5,3437.4,2.52921153]
[1721345024488,1.10185434,3437.5,3437.4,2.52921153]
[1721345024973,0.06485434,3437.5,3437.4,2.52921153]
[1721345025335,1.037,3437.5,3437.4,2.52921153]
[1721345025537,1.10184252,3437.5,3437.4,2.52921153]
[1721345026665,0.06484252,3437.5,3437.4,2.52921153]
[1721345027262,0.06483499,3437.5,3437.4,2.52925856]
[1721345027460,0.06483499,3437.5,3437.4,1.01170342]
[1721345027670,0.06483499,3437.5,3437.1,5.9329952]
[1721345027869,0.06483499,3437.5,3437.2,2.52940518]
[1721345028033,0.06483499,3437.5,3437.3,1.01176207]
[1721345028234,1.037,3437.5,3437.1,2.4152]
[1721345028451,1.037,3437.3,3437.0,2.90945]
[1721345028659,1.037,3437.3,3437.1,1.01180025]
[1721345028860,0.06469868,3437.2,3437.0,2.90945]
[1721345029065,0.06469868,3437.2,3437.1,1.0118051]
[1721345029269,1.037,3437.3,3437.1,1.0118051]
[1721345029460,0.06469118,3437.2,3437.0,2.90945]
[1721345029660,0.06469118,3437.2,3437.1,1.01180576]
[1721345029962,1.037,3437.3,3437.1,1.01180576]
[1721345030163,0.06469118,3437.2,3437.0,2.90945]
[1721345030347,1.037,3437.1,3437.0,2.90945]
[1721345030546,1.037,3437.1,3437.0,5.43896342]
[1721345030756,0.06465118,3437.1,3437.0,5.43896342]
[1721345031284,0.06462968,3437.1,3437.0,5.43896342]
[1721345031442,1.10162968,3437.1,3437.0,5.43896342]
[1721345031643,0.06462968,3437.1,3437.0,5.43896342]
[1721345031893,1.037,3437.3,3437.0,5.43896342]
[1721345032053,0.06462968,3437.1,3437.0,2.90945]
[1721345032259,1.037,3437.3,3437.0,3.92126433]
[1721345032566,2.90909,3437.5,3437.0,2.90945]
[1721345032567,1.10162968,3437.1,3437.0,2.90945]
[1721345032769,1.037,3437.4,3437.0,2.90945]
[1721345032955,0.06462968,3437.1,3437.0,2.90945]
[1721345033160,1.037,3437.2,3437.0,2.90945]
[1721345033466,0.06462968,3437.1,3437.0,2.90945]
[1721345034168,1.037,3437.4,3437.0,2.90945]
[1721345034371,0.06461571,3437.1,3437.0,2.90945]
[1721345034538,1.037,3437.2,3437.0,2.90945]
[1721345034738,3.94609,3437.5,3437.0,2.90945]
[1721345034939,0.06461571,3437.1,3437.0,2.90945]
[1721345035134,3.94609,3437.5,3437.0,2.90945]
[1721345035367,1.10161571,3437.1,3437.0,2.90945]
[1721345035566,1.037,3437.3,3437.0,2.90945]
[1721345035871,1.037,3437.5,3437.0,5.81889]
[1721345036074,0.06465571,3437.2,3437.0,2.90944]
[1721345036240,1.037,3437.5,3437.0,2.90944]
[1721345036440,1.037,3437.2,3437.0,2.90944]
[1721345036767,0.06461571,3437.1,3437.0,2.90944]
[1721345037074,1.037,3437.5,3437.0,2.90944]
[1721345037276,0.06461571,3437.1,3437.0,2.90944]
[1721345037474,2.90902,3437.6,3437.0,2.90944]
[1721345037475,1.037,3437.2,3437.0,2.90944]
[1721345037679,0.06461571,3437.1,3437.0,2.90944]
[1721345038173,1.037,3437.5,3437.0,2.90944]
[1721345038375,0.06461571,3437.1,3437.0,2.90944]
[1721345039065,1.037,3437.5,3437.0,2.90944]
[1721345039266,0.06461571,3437.1,3437.0,2.90944]